[Event "Late-Titled-Tuesday-Blitz-September-12-2023"]
[Site "Chess.com"]
[Date "2023.09.12"]
[Round "6"]
[White "djano"]
[Black "jcmesafischer"]
[Result "1-0"]
[WhiteElo "2637"]
[BlackElo "2369"]
[TimeControl "180+1"]
[EndTime "15:03:18 PDT"]
[Termination "djano won by resignation"]

1. e4 {[%clk 0:03:00.9]} 1... c5 {[%clk 0:02:52.1]} 2. Nc3 {[%clk 0:03:00.1]}
2... Nc6 {[%clk 0:02:46.7]} 3. f4 {[%clk 0:03:00.3]} 3... e6 {[%clk 0:02:45.8]}
4. Nf3 {[%clk 0:03:00.6]} 4... Nge7 {[%clk 0:02:45.5]} 5. Bb5 {[%clk 0:02:55.4]}
5... a6 {[%clk 0:02:43.7]} 6. Bxc6 {[%clk 0:02:55.2]} 6... Nxc6 {[%clk
0:02:44.6]} 7. d4 {[%clk 0:02:54.5]} 7... cxd4 {[%clk 0:02:44.3]} 8. Nxd4 {[%clk
0:02:55.2]} 8... Nxd4 {[%clk 0:02:44.8]} 9. Qxd4 {[%clk 0:02:55.7]} 9... Qc7
{[%clk 0:02:44.7]} 10. Be3 {[%clk 0:02:54.2]} 10... d6 {[%clk 0:02:41.2]} 11.
O-O-O {[%clk 0:02:54]} 11... b5 {[%clk 0:02:40.3]} 12. f5 {[%clk 0:02:46.7]}
12... Bb7 {[%clk 0:02:21.8]} 13. fxe6 {[%clk 0:02:35.7]} 13... fxe6 {[%clk
0:02:22.7]} 14. Rhf1 {[%clk 0:02:34.5]} 14... Rc8 {[%clk 0:02:17.8]} 15. Kb1
{[%clk 0:02:31.3]} 15... e5 {[%clk 0:02:07.3]} 16. Qd2 {[%clk 0:02:28.1]} 16...
Be7 {[%clk 0:02:02.6]} 17. Qe2 {[%clk 0:02:04.5]} 17... Bf6 {[%clk 0:01:55.1]}
18. Qh5+ {[%clk 0:01:59.9]} 18... Qf7 {[%clk 0:01:52.2]} 19. Qxf7+ {[%clk
0:01:57.3]} 19... Kxf7 {[%clk 0:01:51.7]} 20. Rxd6 {[%clk 0:01:58.2]} 20... b4
{[%clk 0:01:42.8]} 21. Rd7+ {[%clk 0:01:45.3]} 21... Kg6 {[%clk 0:01:34.1]} 22.
Rxb7 {[%clk 0:01:41.9]} 22... bxc3 {[%clk 0:01:34.2]} 23. b3 {[%clk 0:01:34.5]}
23... Rc6 {[%clk 0:01:09.4]} 24. a4 {[%clk 0:01:32.6]} 24... Rd8 {[%clk
0:01:07.8]} 25. a5 {[%clk 0:01:30.4]} 25... h6 {[%clk 0:00:57.6]} 26. Rb6 {[%clk
0:01:29.6]} 26... Rdd6 {[%clk 0:00:56.3]} 27. Rxc6 {[%clk 0:01:28.2]} 27... Rxc6
{[%clk 0:00:56.4]} 28. Rd1 {[%clk 0:01:23.3]} 28... Bg5 {[%clk 0:00:56.6]} 29.
Rd3 {[%clk 0:01:11.7]} 29... Bxe3 {[%clk 0:00:54]} 30. Rxe3 {[%clk 0:01:11.9]}
30... Kg5 {[%clk 0:00:54.3]} 31. Rf3 {[%clk 0:01:12.3]} 31... g6 {[%clk
0:00:53.6]} 32. Ka2 {[%clk 0:01:11.3]} 32... Rd6 {[%clk 0:00:53.3]} 33. Rxc3
{[%clk 0:01:10.5]} 33... Rd4 {[%clk 0:00:52.4]} 34. Rc6 {[%clk 0:01:09.1]} 34...
Rxe4 {[%clk 0:00:51]} 35. Rxa6 {[%clk 0:01:09.4]} 35... Re2 {[%clk 0:00:51.9]}
36. Rc6 {[%clk 0:01:09.1]} 36... e4 {[%clk 0:00:52]} 37. a6 {[%clk 0:01:09.5]}
37... Rf2 {[%clk 0:00:49.1]} 38. a7 {[%clk 0:01:03.9]} 38... Rf8 {[%clk
0:00:49.1]} 39. b4 {[%clk 0:00:53.2]} 39... Kf5 {[%clk 0:00:40.9]} 40. b5 {[%clk
0:00:50.8]} 40... e3 {[%clk 0:00:41.1]} 41. Rc7 {[%clk 0:00:45.4]} 41... Kf6
{[%clk 0:00:36.1]} 42. Rc3 {[%clk 0:00:41]} 1-0

[Event "Late-Titled-Tuesday-Blitz-September-12-2023"]
[Site "Chess.com"]
[Date "2023.09.12"]
[Round "6"]
[White "Skagoogle"]
[Black "Firouzja2003"]
[Result "0-1"]
[WhiteElo "2785"]
[BlackElo "3078"]
[TimeControl "180+1"]
[EndTime "15:03:25 PDT"]
[Termination "Firouzja2003 won by resignation"]

1. e4 {[%clk 0:03:00.9]} 1... c6 {[%clk 0:02:57.3]} 2. Nf3 {[%clk 0:03:00.6]}
2... d5 {[%clk 0:02:57.9]} 3. d3 {[%clk 0:03:00.9]} 3... Qc7 {[%clk 0:02:57.9]}
4. Nc3 {[%clk 0:03:00.9]} 4... dxe4 {[%clk 0:02:58]} 5. dxe4 {[%clk 0:03:01.8]}
5... e5 {[%clk 0:02:57.3]} 6. Bc4 {[%clk 0:03:02.2]} 6... b5 {[%clk 0:02:57.6]}
7. Bb3 {[%clk 0:03:02.3]} 7... h6 {[%clk 0:02:58]} 8. O-O {[%clk 0:03:02.5]}
8... Nf6 {[%clk 0:02:58.4]} 9. a4 {[%clk 0:03:02]} 9... b4 {[%clk 0:02:58.5]}
10. Ne2 {[%clk 0:03:02.5]} 10... Nbd7 {[%clk 0:02:59.1]} 11. Ng3 {[%clk
0:03:02.6]} 11... Nc5 {[%clk 0:02:58.3]} 12. Nh4 {[%clk 0:02:57.4]} 12... a5
{[%clk 0:02:49.6]} 13. f4 {[%clk 0:02:39.3]} 13... Ba6 {[%clk 0:02:48.5]} 14.
fxe5 {[%clk 0:02:30.4]} 14... Bxf1 {[%clk 0:02:11.7]} 15. exf6 {[%clk
0:02:29.5]} 15... Ba6 {[%clk 0:01:51.3]} 16. Qg4 {[%clk 0:01:58.1]} 16... Nxb3
{[%clk 0:01:39]} 17. fxg7 {[%clk 0:01:24.1]} 17... Bxg7 {[%clk 0:01:35.5]} 18.
Qxg7 {[%clk 0:01:16.8]} 18... O-O-O {[%clk 0:01:23.6]} 19. cxb3 {[%clk
0:01:05.5]} 19... Qb6+ {[%clk 0:01:23.3]} 20. Be3 {[%clk 0:01:02.6]} 20... Qxe3+
{[%clk 0:01:23.6]} 21. Kh1 {[%clk 0:01:03.2]} 21... Qxb3 {[%clk 0:01:23.3]} 22.
Qg4+ {[%clk 0:00:54.7]} 22... Kb7 {[%clk 0:01:19.2]} 23. Nhf5 {[%clk 0:00:45.3]}
23... Qxb2 {[%clk 0:01:18.3]} 24. Rg1 {[%clk 0:00:39.6]} 24... b3 {[%clk
0:01:04.3]} 25. h3 {[%clk 0:00:38.6]} 25... Qe5 {[%clk 0:01:03.1]} 26. Qf3
{[%clk 0:00:36.1]} 26... Rd3 {[%clk 0:01:00.9]} 27. Qf2 {[%clk 0:00:36.6]} 27...
Rhd8 {[%clk 0:00:59.2]} 28. Kh2 {[%clk 0:00:31.2]} 28... Rd2 {[%clk 0:00:55.6]}
29. Qf3 {[%clk 0:00:23.4]} 29... R8d3 {[%clk 0:00:49.3]} 30. Qh5 {[%clk
0:00:23.7]} 30... Bc4 {[%clk 0:00:49.6]} 31. Qxh6 {[%clk 0:00:20.5]} 31... b2
{[%clk 0:00:46.9]} 32. Rb1 {[%clk 0:00:15.7]} 32... Rd1 {[%clk 0:00:46.1]} 33.
Qf8 {[%clk 0:00:02.3]} 33... Rxb1 {[%clk 0:00:42.3]} 0-1

[Event "Late-Titled-Tuesday-Blitz-September-12-2023"]
[Site "Chess.com"]
[Date "2023.09.12"]
[Round "6"]
[White "Sinquefield"]
[Black "Alexei_Gubajdullin"]
[Result "0-1"]
[WhiteElo "2447"]
[BlackElo "2606"]
[TimeControl "180+1"]
[EndTime "15:03:25 PDT"]
[Termination "Alexei_Gubajdullin won on time"]

1. e4 {[%clk 0:03:00.9]} 1... g6 {[%clk 0:02:59.7]} 2. d4 {[%clk 0:02:57]} 2...
d6 {[%clk 0:02:59]} 3. Nc3 {[%clk 0:02:57.1]} 3... a6 {[%clk 0:02:58.4]} 4. a4
{[%clk 0:02:55.6]} 4... Bg7 {[%clk 0:02:57.6]} 5. g3 {[%clk 0:02:55.2]} 5... Nd7
{[%clk 0:02:56.2]} 6. Bg2 {[%clk 0:02:55.2]} 6... Ngf6 {[%clk 0:02:49.9]} 7.
Nge2 {[%clk 0:02:55.6]} 7... O-O {[%clk 0:02:48.3]} 8. O-O {[%clk 0:02:54.7]}
8... Rb8 {[%clk 0:02:47.9]} 9. h3 {[%clk 0:02:51.3]} 9... b5 {[%clk 0:02:46.9]}
10. axb5 {[%clk 0:02:46]} 10... axb5 {[%clk 0:02:46.5]} 11. d5 {[%clk
0:02:46.4]} 11... b4 {[%clk 0:02:44]} 12. Nb1 {[%clk 0:02:40.6]} 12... Ne5
{[%clk 0:02:42.9]} 13. Nd4 {[%clk 0:02:37.2]} 13... c5 {[%clk 0:02:30.5]} 14.
dxc6 {[%clk 0:02:35.2]} 14... Qc7 {[%clk 0:02:28.4]} 15. Be3 {[%clk 0:02:14.4]}
15... Nxc6 {[%clk 0:02:16.7]} 16. Nxc6 {[%clk 0:02:13.7]} 16... Qxc6 {[%clk
0:02:16.9]} 17. e5 {[%clk 0:02:12.8]} 17... Ne4 {[%clk 0:02:16.9]} 18. Nd2
{[%clk 0:01:26.2]} 18... d5 {[%clk 0:02:14.8]} 19. Nxe4 {[%clk 0:01:18.8]} 19...
dxe4 {[%clk 0:02:13.7]} 20. Qd4 {[%clk 0:01:16.7]} 20... Bb7 {[%clk 0:01:55.9]}
21. Rfd1 {[%clk 0:01:11.9]} 21... Qxc2 {[%clk 0:01:49.9]} 22. Qxb4 {[%clk
0:01:06.4]} 22... Bxe5 {[%clk 0:01:41]} 23. Qxe7 {[%clk 0:00:43.6]} 23... Bxb2
{[%clk 0:01:32.8]} 24. Rd2 {[%clk 0:00:37.2]} 24... Qc3 {[%clk 0:01:08]} 25. Rb1
{[%clk 0:00:35.3]} 25... Bc1 {[%clk 0:01:03.7]} 26. Bd4 {[%clk 0:00:22.4]} 26...
Qxd2 {[%clk 0:00:42.3]} 27. Qe5 {[%clk 0:00:20.8]} 27... f6 {[%clk 0:00:35.5]}
28. Qe6+ {[%clk 0:00:16.5]} 28... Kg7 {[%clk 0:00:34.5]} 0-1

[Event "Late-Titled-Tuesday-Blitz-September-12-2023"]
[Site "Chess.com"]
[Date "2023.09.12"]
[Round "6"]
[White "m_ezat"]
[Black "Perecke"]
[Result "1-0"]
[WhiteElo "2663"]
[BlackElo "2502"]
[TimeControl "180+1"]
[EndTime "15:03:30 PDT"]
[Termination "m_ezat won by checkmate"]

1. d4 {[%clk 0:03:00.9]} 1... Nf6 {[%clk 0:02:58.7]} 2. c4 {[%clk 0:03:00.7]}
2... e6 {[%clk 0:02:59.2]} 3. Nc3 {[%clk 0:03:00.6]} 3... d5 {[%clk 0:02:58]} 4.
cxd5 {[%clk 0:03:00.3]} 4... exd5 {[%clk 0:02:58.9]} 5. Bg5 {[%clk 0:02:59.9]}
5... Be7 {[%clk 0:02:59.7]} 6. e3 {[%clk 0:02:59.8]} 6... O-O {[%clk 0:03:00.4]}
7. Bd3 {[%clk 0:02:59.7]} 7... Re8 {[%clk 0:02:59.7]} 8. Nge2 {[%clk 0:02:59.1]}
8... h6 {[%clk 0:02:57.5]} 9. Bf4 {[%clk 0:02:54.7]} 9... c6 {[%clk 0:02:57.4]}
10. Qc2 {[%clk 0:02:53.4]} 10... Nbd7 {[%clk 0:02:54.5]} 11. O-O {[%clk
0:02:51.2]} 11... Nh5 {[%clk 0:02:51]} 12. Nxd5 {[%clk 0:02:48.2]} 12... Nxf4
{[%clk 0:02:41.2]} 13. Nxe7+ {[%clk 0:02:46.2]} 13... Qxe7 {[%clk 0:02:39.4]}
14. Nxf4 {[%clk 0:02:46.4]} 14... Nf6 {[%clk 0:02:39.8]} 15. Rab1 {[%clk
0:02:42.7]} 15... a5 {[%clk 0:02:38.5]} 16. a3 {[%clk 0:02:42.2]} 16... Be6
{[%clk 0:02:34.1]} 17. b4 {[%clk 0:02:40.8]} 17... axb4 {[%clk 0:02:34.2]} 18.
axb4 {[%clk 0:02:40.6]} 18... Ra2 {[%clk 0:02:34.3]} 19. Rb2 {[%clk 0:02:39.3]}
19... Rea8 {[%clk 0:02:28.4]} 20. b5 {[%clk 0:02:37.7]} 20... Rxb2 {[%clk
0:02:23]} 21. Qxb2 {[%clk 0:02:36.9]} 21... Nd5 {[%clk 0:02:18]} 22. Nxe6 {[%clk
0:02:28.9]} 22... Qxe6 {[%clk 0:02:18.9]} 23. bxc6 {[%clk 0:02:27.5]} 23... bxc6
{[%clk 0:02:18.5]} 24. Qb7 {[%clk 0:02:20.7]} 24... Rc8 {[%clk 0:02:02.2]} 25.
Rc1 {[%clk 0:02:10]} 25... g6 {[%clk 0:01:55.3]} 26. h3 {[%clk 0:02:03.1]} 26...
Ne7 {[%clk 0:01:43.8]} 27. Bc4 {[%clk 0:01:59.5]} 27... Qd6 {[%clk 0:01:40.7]}
28. Qb3 {[%clk 0:01:57.6]} 28... Qf6 {[%clk 0:01:35.2]} 29. Ra1 {[%clk 0:01:53]}
29... Nf5 {[%clk 0:01:32.6]} 30. Ra7 {[%clk 0:01:51.4]} 30... Nd6 {[%clk
0:01:32.9]} 31. Bd3 {[%clk 0:01:49.4]} 31... c5 {[%clk 0:01:30.6]} 32. Ra6
{[%clk 0:01:44.1]} 32... cxd4 {[%clk 0:01:12.5]} 33. Qd5 {[%clk 0:01:42.6]}
33... Rc1+ {[%clk 0:00:51]} 34. Kh2 {[%clk 0:00:41.2]} 34... Qxf2 {[%clk
0:00:50.4]} 35. Qxd6 {[%clk 0:00:35.9]} 35... Qg1+ {[%clk 0:00:48.1]} 36. Kg3
{[%clk 0:00:35.1]} 36... Qxe3+ {[%clk 0:00:49]} 37. Kh2 {[%clk 0:00:33.6]} 37...
Qxd3 {[%clk 0:00:49.5]} 38. Ra8+ {[%clk 0:00:29.1]} 38... Kg7 {[%clk 0:00:32.3]}
39. Qe5+ {[%clk 0:00:28.6]} 39... f6 {[%clk 0:00:26.8]} 40. Qe7# {[%clk
0:00:28.6]} 1-0

[Event "Late-Titled-Tuesday-Blitz-September-12-2023"]
[Site "Chess.com"]
[Date "2023.09.12"]
[Round "6"]
[White "Inepton_Fermion"]
[Black "YEIKO2017"]
[Result "1-0"]
[WhiteElo "2371"]
[BlackElo "2525"]
[TimeControl "180+1"]
[EndTime "15:03:37 PDT"]
[Termination "Inepton_Fermion won by resignation"]

1. Nf3 {[%clk 0:03:00]} 1... c5 {[%clk 0:02:58.4]} 2. b3 {[%clk 0:02:59]} 2...
g6 {[%clk 0:02:58.3]} 3. Bb2 {[%clk 0:02:59.4]} 3... Nf6 {[%clk 0:02:58.8]} 4.
c4 {[%clk 0:02:59.5]} 4... Bg7 {[%clk 0:02:58.1]} 5. g3 {[%clk 0:02:58]} 5...
O-O {[%clk 0:02:57.6]} 6. Bg2 {[%clk 0:02:58.4]} 6... d6 {[%clk 0:02:57.4]} 7.
d4 {[%clk 0:02:57.5]} 7... Ne4 {[%clk 0:02:56.6]} 8. O-O {[%clk 0:02:54.8]} 8...
Nc6 {[%clk 0:02:56]} 9. Nbd2 {[%clk 0:02:44.8]} 9... Bf5 {[%clk 0:02:49.2]} 10.
e3 {[%clk 0:02:20]} 10... Qb6 {[%clk 0:02:41.6]} 11. Nh4 {[%clk 0:01:57.9]}
11... Nxd2 {[%clk 0:02:39.6]} 12. Nxf5 {[%clk 0:01:57.7]} 12... Nxf1 {[%clk
0:02:35.9]} 13. Nxg7 {[%clk 0:01:41.9]} 13... cxd4 {[%clk 0:02:25.6]} 14. exd4
{[%clk 0:01:39.8]} 14... e5 {[%clk 0:02:13]} 15. Nh5 {[%clk 0:01:21.2]} 15...
gxh5 {[%clk 0:02:09]} 16. Qxh5 {[%clk 0:01:10.9]} 16... f6 {[%clk 0:02:01.8]}
17. Bd5+ {[%clk 0:01:04.6]} 17... Kh8 {[%clk 0:02:00.4]} 18. Be4 {[%clk
0:01:01.3]} 18... Qc7 {[%clk 0:01:58.4]} 19. d5 {[%clk 0:01:00.3]} 19... Nd2
{[%clk 0:01:54.3]} 20. Bf5 {[%clk 0:00:46]} 20... Nd4 {[%clk 0:01:43.8]} 21.
Bxd4 {[%clk 0:00:42.9]} 21... exd4 {[%clk 0:01:44.7]} 22. Rd1 {[%clk 0:00:36.9]}
22... Rae8 {[%clk 0:01:29.3]} 23. Rxd2 {[%clk 0:00:35.1]} 23... Re5 {[%clk
0:01:29.5]} 24. Rxd4 {[%clk 0:00:33]} 24... Rg8 {[%clk 0:01:21.4]} 25. Rh4
{[%clk 0:00:28.1]} 25... Rg7 {[%clk 0:01:00.7]} 26. Kg2 {[%clk 0:00:20]} 26...
Qe7 {[%clk 0:00:51.8]} 27. Qf3 {[%clk 0:00:16.8]} 27... Re1 {[%clk 0:00:40.4]}
28. Rh6 {[%clk 0:00:16.9]} 28... Qe5 {[%clk 0:00:38.4]} 29. Be6 {[%clk
0:00:13.7]} 29... Rg6 {[%clk 0:00:34.7]} 30. Rh5 {[%clk 0:00:09.8]} 30... Qe4
{[%clk 0:00:34.5]} 31. Qxe4 {[%clk 0:00:08.5]} 31... Rxe4 {[%clk 0:00:35.4]} 32.
Bf5 {[%clk 0:00:09]} 32... Re2 {[%clk 0:00:34.7]} 33. Bxg6 {[%clk 0:00:09]}
33... Rxa2 {[%clk 0:00:33.6]} 34. Rxh7+ {[%clk 0:00:08.9]} 34... Kg8 {[%clk
0:00:34.4]} 35. Rxb7 {[%clk 0:00:09.3]} 35... a5 {[%clk 0:00:33.3]} 36. h4
{[%clk 0:00:07.9]} 36... Rb2 {[%clk 0:00:33.6]} 37. h5 {[%clk 0:00:08.1]} 1-0

[Event "Late-Titled-Tuesday-Blitz-September-12-2023"]
[Site "Chess.com"]
[Date "2023.09.12"]
[Round "6"]
[White "a-z30"]
[Black "chessdjw"]
[Result "0-1"]
[WhiteElo "2418"]
[BlackElo "2726"]
[TimeControl "180+1"]
[EndTime "15:03:39 PDT"]
[Termination "chessdjw won on time"]

1. d3 {[%clk 0:03:00.9]} 1... d5 {[%clk 0:02:59.1]} 2. Nf3 {[%clk 0:03:01]} 2...
g6 {[%clk 0:02:59.5]} 3. g3 {[%clk 0:03:01.7]} 3... Bg7 {[%clk 0:03:00.1]} 4.
Bg2 {[%clk 0:03:02.4]} 4... Nc6 {[%clk 0:03:00.7]} 5. O-O {[%clk 0:03:03.1]}
5... e5 {[%clk 0:03:00.8]} 6. c4 {[%clk 0:03:03.7]} 6... Nge7 {[%clk 0:03:00.5]}
7. cxd5 {[%clk 0:03:03]} 7... Nxd5 {[%clk 0:03:01.4]} 8. Nc3 {[%clk 0:03:03]}
8... Nde7 {[%clk 0:02:48.7]} 9. Rb1 {[%clk 0:03:01.8]} 9... O-O {[%clk
0:02:45.6]} 10. b4 {[%clk 0:03:01.5]} 10... a6 {[%clk 0:02:42.5]} 11. a4 {[%clk
0:03:00.9]} 11... h6 {[%clk 0:02:35.5]} 12. b5 {[%clk 0:02:59.9]} 12... axb5
{[%clk 0:02:35.8]} 13. axb5 {[%clk 0:02:36.9]} 13... Nd4 {[%clk 0:02:36.2]} 14.
Nd2 {[%clk 0:02:36.8]} 14... Nef5 {[%clk 0:02:27.3]} 15. e3 {[%clk 0:02:30.8]}
15... Ne6 {[%clk 0:02:26.7]} 16. Qc2 {[%clk 0:02:29.8]} 16... Nc5 {[%clk
0:02:21.2]} 17. Nd5 {[%clk 0:02:17.9]} 17... Ne6 {[%clk 0:01:54.3]} 18. Bb2
{[%clk 0:02:15.2]} 18... Bd7 {[%clk 0:01:51.2]} 19. Bc3 {[%clk 0:01:54.7]} 19...
c6 {[%clk 0:01:50.8]} 20. bxc6 {[%clk 0:01:46.7]} 20... Bxc6 {[%clk 0:01:50.7]}
21. Qb3 {[%clk 0:01:30]} 21... Nc5 {[%clk 0:01:42.9]} 22. Qc4 {[%clk 0:01:29.2]}
22... Na4 {[%clk 0:01:32.6]} 23. Bb4 {[%clk 0:01:07.7]} 23... Re8 {[%clk
0:01:16.8]} 24. Nc3 {[%clk 0:00:28.5]} 24... Nb6 {[%clk 0:01:13]} 25. Qb3 {[%clk
0:00:20.1]} 25... Bxg2 {[%clk 0:01:10.8]} 26. Kxg2 {[%clk 0:00:21]} 26... Qxd3
{[%clk 0:01:10.8]} 27. Nde4 {[%clk 0:00:21.3]} 27... Nc4 {[%clk 0:01:04.3]} 28.
Rfd1 {[%clk 0:00:19.8]} 28... Nfxe3+ {[%clk 0:01:04]} 29. fxe3 {[%clk 0:00:18]}
29... Nxe3+ {[%clk 0:01:04.1]} 30. Kh1 {[%clk 0:00:17.1]} 30... Nxd1 {[%clk
0:01:03.4]} 31. Rxd1 {[%clk 0:00:18]} 31... Qf3+ {[%clk 0:01:03.7]} 32. Kg1
{[%clk 0:00:18.2]} 32... Kh7 {[%clk 0:00:45.3]} 33. Rf1 {[%clk 0:00:14.5]} 33...
Qe3+ {[%clk 0:00:45.7]} 34. Kh1 {[%clk 0:00:14.2]} 34... f5 {[%clk 0:00:46]} 35.
Nd6 {[%clk 0:00:11]} 35... Red8 {[%clk 0:00:42.4]} 36. Nc4 {[%clk 0:00:07.4]}
36... Qd3 {[%clk 0:00:36]} 37. Rg1 {[%clk 0:00:01.6]} 37... Qf3+ {[%clk
0:00:35.7]} 38. Rg2 {[%clk 0:00:01.2]} 38... Ra1+ {[%clk 0:00:36.1]} 0-1

[Event "Late-Titled-Tuesday-Blitz-September-12-2023"]
[Site "Chess.com"]
[Date "2023.09.12"]
[Round "6"]
[White "egnfanclub"]
[Black "RIPOL"]
[Result "0-1"]
[WhiteElo "2322"]
[BlackElo "2468"]
[TimeControl "180+1"]
[EndTime "15:03:43 PDT"]
[Termination "RIPOL won by resignation"]

1. e4 {[%clk 0:03:00.9]} 1... Nf6 {[%clk 0:02:58.9]} 2. Nc3 {[%clk 0:02:59.4]}
2... d5 {[%clk 0:02:58.2]} 3. e5 {[%clk 0:02:59.1]} 3... Nfd7 {[%clk 0:02:57.8]}
4. e6 {[%clk 0:02:58.9]} 4... fxe6 {[%clk 0:02:57.3]} 5. d4 {[%clk 0:02:59.3]}
5... c5 {[%clk 0:02:55.9]} 6. Nf3 {[%clk 0:02:57.6]} 6... g6 {[%clk 0:02:55]} 7.
Be3 {[%clk 0:02:56.3]} 7... Nc6 {[%clk 0:02:48.4]} 8. Bb5 {[%clk 0:02:56]} 8...
Nf6 {[%clk 0:02:39.3]} 9. Bxc6+ {[%clk 0:02:53.4]} 9... bxc6 {[%clk 0:02:38.3]}
10. Ne5 {[%clk 0:02:47.5]} 10... Qc7 {[%clk 0:02:33.7]} 11. h4 {[%clk
0:02:31.1]} 11... cxd4 {[%clk 0:02:13.5]} 12. Qxd4 {[%clk 0:02:32]} 12... c5
{[%clk 0:02:06.9]} 13. Qxc5 {[%clk 0:02:27.9]} 13... Qxe5 {[%clk 0:01:56.6]} 14.
Qc6+ {[%clk 0:02:27.6]} 14... Kf7 {[%clk 0:01:44.1]} 15. Qxa8 {[%clk 0:02:27.4]}
15... Bh6 {[%clk 0:01:40.3]} 16. Qxa7 {[%clk 0:02:27.7]} 16... Ng4 {[%clk
0:01:27.8]} 17. Qd4 {[%clk 0:02:04.7]} 17... Qxd4 {[%clk 0:00:51]} 18. Bxd4
{[%clk 0:02:05.6]} 18... e5 {[%clk 0:00:50.8]} 19. Bc5 {[%clk 0:01:59.4]} 19...
d4 {[%clk 0:00:49.6]} 20. Ne4 {[%clk 0:01:37.9]} 20... Bb7 {[%clk 0:00:49.8]}
21. Ng5+ {[%clk 0:01:33.2]} 21... Bxg5 {[%clk 0:00:47.8]} 22. hxg5 {[%clk
0:01:34.1]} 22... Bxg2 {[%clk 0:00:37]} 23. Rg1 {[%clk 0:01:30.1]} 23... Bf3
{[%clk 0:00:35]} 24. Rg3 {[%clk 0:01:30.1]} 24... e4 {[%clk 0:00:33.9]} 25. Bxd4
{[%clk 0:01:28.2]} 25... e5 {[%clk 0:00:33.5]} 26. Bc3 {[%clk 0:01:12.4]} 26...
h5 {[%clk 0:00:28]} 27. gxh6 {[%clk 0:01:11.5]} 27... Rxh6 {[%clk 0:00:27.3]}
28. Rg1 {[%clk 0:01:09.7]} 28... Rh2 {[%clk 0:00:25.8]} 29. Rf1 {[%clk
0:01:03.8]} 29... e3 {[%clk 0:00:23.8]} 30. a4 {[%clk 0:00:38.8]} 30... e4
{[%clk 0:00:23.4]} 31. a5 {[%clk 0:00:36.7]} 31... exf2+ {[%clk 0:00:20.8]} 32.
Kd2 {[%clk 0:00:30.9]} 32... e3+ {[%clk 0:00:20.6]} 33. Kd3 {[%clk 0:00:29.5]}
33... e2 {[%clk 0:00:20.8]} 34. a6 {[%clk 0:00:29]} 34... exf1=Q+ {[%clk
0:00:18.9]} 35. Rxf1 {[%clk 0:00:29.9]} 35... Bg2 {[%clk 0:00:17.9]} 36. Ra1
{[%clk 0:00:25.3]} 36... f1=Q+ {[%clk 0:00:17.1]} 37. Rxf1+ {[%clk 0:00:23.5]}
37... Bxf1+ {[%clk 0:00:17.1]} 0-1

[Event "Late-Titled-Tuesday-Blitz-September-12-2023"]
[Site "Chess.com"]
[Date "2023.09.12"]
[Round "6"]
[White "stasOR4ik"]
[Black "ZuraTqebuchava"]
[Result "0-1"]
[WhiteElo "2427"]
[BlackElo "2273"]
[TimeControl "180+1"]
[EndTime "15:03:43 PDT"]
[Termination "ZuraTqebuchava won by checkmate"]

1. e4 {[%clk 0:03:00.9]} 1... e5 {[%clk 0:02:59.4]} 2. Nf3 {[%clk 0:02:59.3]}
2... Nc6 {[%clk 0:02:59.7]} 3. Bb5 {[%clk 0:02:59.5]} 3... Be7 {[%clk
0:02:59.1]} 4. O-O {[%clk 0:02:58.9]} 4... d6 {[%clk 0:02:57.4]} 5. c3 {[%clk
0:02:57.6]} 5... Nf6 {[%clk 0:02:44.4]} 6. Re1 {[%clk 0:02:56.9]} 6... O-O
{[%clk 0:02:43.5]} 7. d4 {[%clk 0:02:57.1]} 7... exd4 {[%clk 0:02:43.4]} 8. cxd4
{[%clk 0:02:58]} 8... Bg4 {[%clk 0:02:40.3]} 9. Bxc6 {[%clk 0:02:45.2]} 9...
bxc6 {[%clk 0:02:39.8]} 10. h3 {[%clk 0:02:45.5]} 10... Bh5 {[%clk 0:02:36.2]}
11. Nc3 {[%clk 0:02:43.2]} 11... Re8 {[%clk 0:02:32.5]} 12. Bf4 {[%clk
0:02:34.6]} 12... h6 {[%clk 0:02:27.3]} 13. g4 {[%clk 0:02:21.6]} 13... Bg6
{[%clk 0:02:24.4]} 14. Qa4 {[%clk 0:01:52.7]} 14... Qd7 {[%clk 0:02:12]} 15. Bg3
{[%clk 0:01:45.4]} 15... Bf8 {[%clk 0:02:00.1]} 16. e5 {[%clk 0:01:43.7]} 16...
Nh7 {[%clk 0:01:37.2]} 17. d5 {[%clk 0:01:35.3]} 17... Rab8 {[%clk 0:00:59.7]}
18. dxc6 {[%clk 0:01:32.8]} 18... Qd8 {[%clk 0:00:54.9]} 19. exd6 {[%clk
0:01:20]} 19... Rxe1+ {[%clk 0:00:50.2]} 20. Rxe1 {[%clk 0:01:20.9]} 20... Bxd6
{[%clk 0:00:49.9]} 21. Bxd6 {[%clk 0:01:10]} 21... Qxd6 {[%clk 0:00:47.5]} 22.
Qxa7 {[%clk 0:01:02.9]} 22... Rxb2 {[%clk 0:00:42.6]} 23. Ne5 {[%clk 0:00:44]}
23... Nf8 {[%clk 0:00:32.4]} 24. Qa8 {[%clk 0:00:33.4]} 24... Kh7 {[%clk
0:00:24.6]} 25. Nxg6 {[%clk 0:00:24.4]} 25... Nxg6 {[%clk 0:00:24.2]} 26. Re8
{[%clk 0:00:23]} 26... Qd4 {[%clk 0:00:19.4]} 27. Ne4 {[%clk 0:00:21.1]} 27...
Rb1+ {[%clk 0:00:15.9]} 28. Kg2 {[%clk 0:00:19.7]} 28... Qd1 {[%clk 0:00:11.9]}
29. Ng3 {[%clk 0:00:12.7]} 29... Nh4+ {[%clk 0:00:09.9]} 30. Kh2 {[%clk
0:00:12]} 30... Qg1# {[%clk 0:00:09.4]} 0-1